fUSD/lending_fUSD_20250206
["ID","MTS","AMOUNT","RATE_DAILY","PERIOD"]
[351909020,1738835432699,-150.0,0.00019835,2]
[351909021,1738835432708,-1000.0,0.00019839,2]
[351909022,1738835432718,-500.0,0.0001984,2]
[351909023,1738835432727,-150.0,0.00019886,2]
[351909024,1738835432737,-1000.0,0.0001989,2]
[351909025,1738835432746,-2229.07816084,0.00019899,2]
[351909026,1738835432755,-35936.23994548,0.00019899,10]
[351909027,1738835432767,-1865.69249295,0.00019899,10]
[351909028,1738835432782,-450.653,0.00019899,10]
[351909029,1738835432794,-555.90330277,0.00019899,10]
[351909030,1738835432805,-355.8204288,0.00019899,10]
[351909031,1738835432824,-810.3331469,0.00019899,10]
[351909032,1738835432837,-63.39067684,0.00019899,10]
[351909033,1738835432846,-334.66218817,0.000199,2]
[351909034,1738835432861,-10287.68557576,0.000199,2]
[351909035,1738835432877,-1189.367004,0.000199,2]
[351909044,1738835438375,-724.27902174,0.000199,2]
[351909046,1738835438551,-2000.942007,0.000199,2]
[351909047,1738835438563,-1103.66876106,0.000199,2]
[351909049,1738835438591,-1507.57772365,0.000199,2]
[351909051,1738835438607,-10904.37334659,0.000199,2]
[351909202,1738835440273,-1970.95077836,0.000199,2]
[351909214,1738835440385,-6341.60486318,0.000199,2]
[351909543,1738835443472,-15209.3194663,0.000199,2]
[351909561,1738835443560,-36421.9887,0.000199,2]
[351909849,1738835446320,-3143.528934,0.000199,2]
[351909867,1738835446487,-234052.53508118,0.000199,2]
[351909869,1738835446496,-237.93267943,0.000199,2]
[351909871,1738835446506,-385.5925426,0.000199,2]
[351909873,1738835446515,-179.18414601,0.000199,2]
[351909875,1738835446524,-155.44804461,0.000199,2]
[351909877,1738835446533,-155.44804449,0.000199,2]
[351909879,1738835446543,-155.44804449,0.000199,2]
[351909881,1738835446552,-155.44804449,0.000199,2]
[351909883,1738835446561,-155.44804449,0.000199,2]
[351909885,1738835446570,-155.44804449,0.000199,2]
[351909887,1738835446580,-155.44804449,0.000199,2]
[351909889,1738835446590,-155.44804449,0.000199,2]
[351909891,1738835446600,-155.44804449,0.000199,2]
[351909893,1738835446609,-155.44804449,0.000199,2]
[351909895,1738835446618,-155.44804449,0.000199,2]
[351909897,1738835446627,-155.44804449,0.000199,2]
[351909899,1738835446637,-155.44804449,0.000199,2]
[351909901,1738835446646,-754.93765038,0.000199,2]
[351909903,1738835446655,-754.93765038,0.000199,2]
[351909905,1738835446665,-754.93765038,0.000199,2]
[351909907,1738835446674,-754.93765038,0.000199,2]
[351909909,1738835446684,-754.93765038,0.000199,2]
[351909911,1738835446693,-754.93765038,0.000199,2]
[351909913,1738835446702,-754.93765038,0.000199,2]
[351909915,1738835446712,-754.93765038,0.000199,2]
[351909917,1738835446721,-754.93765038,0.000199,2]
[351909919,1738835446731,-754.93765038,0.000199,2]
[351909921,1738835446740,-155.44804449,0.000199,2]
[351909923,1738835446749,-150.01658131,0.000199,20]
[351909925,1738835446758,-754.93765038,0.000199,2]
[351909927,1738835446767,-754.93765038,0.000199,2]
[351909929,1738835446776,-754.93765038,0.000199,2]
[351909931,1738835446786,-180.6218958,0.000199,2]
[351909933,1738835446795,-754.93765038,0.000199,2]
[351909935,1738835446804,-754.93765038,0.000199,2]
[351909937,1738835446813,-754.93765038,0.000199,2]
[351909939,1738835446822,-754.93765038,0.000199,2]
[351909941,1738835446831,-754.93765038,0.000199,2]
[351909943,1738835446841,-754.93765038,0.000199,2]
[351909945,1738835446851,-155.44804449,0.000199,2]
[351909947,1738835446861,-754.93,0.000199,2]
[351909949,1738835446870,-155.44804449,0.000199,2]
[351909951,1738835446880,-757.23540069,0.000199,2]
[351909953,1738835446889,-757.23540069,0.000199,2]
[351909955,1738835446899,-757.23540069,0.000199,2]
[351909957,1738835446909,-757.23540069,0.000199,2]
[351909959,1738835446918,-757.23540069,0.000199,2]
[351909961,1738835446927,-757.23540069,0.000199,2]
[351909963,1738835446937,-155.44804449,0.000199,2]
[351909965,1738835446946,-757.23540069,0.000199,2]
[351909967,1738835446956,-757.23540069,0.000199,2]
[351909969,1738835446965,-757.23540069,0.000199,2]
[351909971,1738835446974,-757.23540069,0.000199,2]
[351909973,1738835446984,-757.23540069,0.000199,2]
[351909975,1738835446994,-757.23540069,0.000199,2]
[351909977,1738835447003,-757.23540069,0.000199,2]
[351909979,1738835447012,-757.23540069,0.000199,2]
[351909981,1738835447021,-757.23540069,0.000199,2]
[351909983,1738835447030,-757.23540069,0.000199,2]
[351909985,1738835447039,-757.23540069,0.000199,2]
[351909987,1738835447049,-757.23540069,0.000199,2]
[351909989,1738835447058,-757.23540069,0.000199,2]
[351909991,1738835447067,-757.23,0.000199,2]
[351909993,1738835447077,-155.44804449,0.000199,2]
[351909995,1738835447088,-155.44804449,0.000199,2]
[351909997,1738835447099,-876.50844631,0.000199,2]
[351909999,1738835447108,-876.50844631,0.000199,2]
[351910001,1738835447117,-876.50844631,0.000199,2]
[351910003,1738835447126,-876.50844631,0.000199,2]
[351910005,1738835447137,-876.50844631,0.000199,2]
[351910007,1738835447147,-876.50844631,0.000199,2]
[351910009,1738835447156,-155.44804449,0.000199,2]
[351910011,1738835447166,-876.50844631,0.000199,2]
[351910013,1738835447175,-876.50844631,0.000199,2]
[351910015,1738835447184,-876.50844631,0.000199,2]
[351910017,1738835447193,-876.50844631,0.000199,2]
[351910019,1738835447202,-876.50844631,0.000199,2]
[351910021,1738835447213,-876.50844631,0.000199,2]
[351910023,1738835447222,-876.50844631,0.000199,2]
[351910025,1738835447232,-876.50844631,0.000199,2]
[351910027,1738835447241,-876.50844631,0.000199,2]
[351910029,1738835447251,-876.50844631,0.000199,2]
[351910031,1738835447261,-876.50844631,0.000199,2]
[351910033,1738835447271,-876.50844631,0.000199,2]
[351910035,1738835447280,-876.50844631,0.000199,2]
[351910037,1738835447291,-876.5,0.000199,2]
[351910039,1738835447301,-2162.70056172,0.000199,2]
[351910041,1738835447310,-1022.69072423,0.000199,3]
[351910043,1738835447320,-11692.41975462,0.000199,2]
[351910045,1738835447331,-150.0,0.00019905,2]
[351910047,1738835447343,-1000.0,0.00019913,2]
[351910049,1738835447355,-155.85,0.00019916,2]
[351910051,1738835447366,-150.0,0.00019918,2]
[351910053,1738835447378,-150.0,0.00019918,2]
[351910055,1738835447387,-150.0,0.00019923,2]
[351910057,1738835447397,-1000.0,0.00019937,2]
[351910059,1738835447407,-150.0,0.00019946,2]
[351910061,1738835447418,-150.0,0.00019965,2]
[351910063,1738835447427,-150.0,0.00019977,2]
[351910065,1738835447437,-1378.329,0.00019978,2]
[351910067,1738835447448,-150.0,0.00019982,2]
[351910070,1738835447459,-150.0,0.00019985,2]
[351910072,1738835447468,-18144.28382959,0.00019996,2]
[351910074,1738835447478,-500.0,0.00019998,2]
[351910076,1738835447488,-500.0,0.00019998,2]
[351910078,1738835447498,-500.0,0.00019998,2]
[351910080,1738835447508,-500.0,0.00019998,2]
[351910082,1738835447518,-500.0,0.00019998,2]
[351910084,1738835447528,-500.0,0.00019998,2]
[351910086,1738835447538,-500.0,0.00019998,2]
[351910088,1738835447548,-500.0,0.00019998,2]
[351910090,1738835447557,-500.0,0.00019998,2]
[351910092,1738835447567,-500.0,0.00019998,2]
[351910094,1738835447576,-363.68687326,0.00019998,2]
[351910096,1738835447587,-500.0,0.00019998,2]
[351910097,1738835447597,-500.0,0.00019998,2]
[351910099,1738835447607,-500.0,0.00019998,2]
[351910101,1738835447617,-258.68184536,0.00019999,2]
[351910103,1738835447627,-666.0,0.00019999,2]
[351910106,1738835447637,-202205.9233337,0.00019999,2]
[351910108,1738835447650,-1568.56878271,0.00019999,2]
[351910111,1738835447674,-46225.50788359,0.00019999,2]
[351910113,1738835447685,-2000.0,0.00019999,2]
[351910115,1738835447695,-1070.09,0.00019999,2]
[351910117,1738835447705,-1271.0,0.0002,2]
[351910119,1738835447714,-310.03136031,0.0002,2]
[351910120,1738835447723,-1067.54523548,0.0002,2]
[351910121,1738835447732,-357176.35580016,0.0002,2]
[351910122,1738835447742,-589789.86740942,0.0002,2]
[351910137,1738836326045,500.0,0.0002,120]
[351910175,1738836631589,-327.21140078,8.836e-05,2]
[351910176,1738836631703,-1063.47039922,8.836e-05,2]
[351910177,1738836631713,-153.541071,9.881e-05,2]
[351910178,1738836631723,-152.35884,9.881e-05,2]
[351910179,1738836631733,-154.87,0.00010137,2]
[351910180,1738836631742,-153.541071,0.00010155,2]
[351910181,1738836631751,-152.35884,0.00010155,2]
[351910182,1738836631763,-153.541071,0.00010292,2]
[351910183,1738836631772,-152.35884,0.00010292,2]
[351910184,1738836631782,-152.35884,0.00010429,2]
[351910185,1738836631791,-153.541071,0.00010566,2]
[351910186,1738836631800,-153.541071,0.00010703,2]
[351910187,1738836631810,-152.35884,0.00010703,2]
[351910188,1738836631819,-153.541071,0.00010977,2]
[351910189,1738836631829,-152.35884,0.00010977,2]
[351910190,1738836631838,-153.541071,0.00011114,2]
[351910191,1738836631848,-152.35884,0.00011114,2]
[351910192,1738836631857,-152.35884,0.00011251,2]
[351910193,1738836631867,-153.541071,0.00011388,2]
[351910194,1738836631876,-402.97,0.00016357,2]
[351910195,1738836631885,-188.59,0.00017958,2]
[351910196,1738836631895,-250.0,0.00017977,2]
[351910197,1738836631904,-475.06,0.00018016,2]
[351910198,1738836631914,-286.56,0.00018308,30]
[351910199,1738836631923,-886.79,0.00018541,2]
[351910200,1738836631932,-878.92,0.00018541,2]
[351910201,1738836631941,-402.97,0.00018621,2]
[351910202,1738836631951,-341.01,0.00018953,2]
[351910203,1738836631961,-150.0,0.00019,11]
[351910204,1738836631970,-1000.0,0.00019001,2]
[351910205,1738836631979,-167.18,0.00019173,2]
[351910206,1738836631989,-155.88,0.00019178,2]
[351910207,1738836631998,-774.87,0.0001926,2]
[351910208,1738836632007,-774.87,0.0001926,2]
[351910209,1738836632016,-774.87,0.0001926,2]
[351910210,1738836632026,-1549.46,0.0001926,2]
[351910211,1738836632035,-217.49,0.0001926,2]
[351910212,1738836632044,-774.87,0.0001926,2]
[351910213,1738836632054,-883.31,0.0001926,2]
[351910214,1738836632063,-774.87,0.0001926,2]
[351910215,1738836632072,-774.87,0.0001926,2]
[351910216,1738836632082,-300.0,0.0001926,2]
[351910217,1738836632091,-300.62,0.0001926,2]
[351910218,1738836632101,-150.57,0.0001926,2]
[351910219,1738836632112,-150.0,0.0001926,2]
[351910220,1738836632122,-150.0,0.00019499,2]
[351910221,1738836632132,-150.0,0.000195,13]
[351910222,1738836632142,-755.8,0.000195,2]
[351910223,1738836632151,-1549.18,0.000195,2]
[351910224,1738836632160,-774.87,0.000195,2]
[351910225,1738836632170,-774.87,0.000195,2]
[351910226,1738836632180,-302.34,0.000195,2]
[351910227,1738836632189,-359.5,0.000195,2]
[351910228,1738836632198,-1886.9620282,0.00019599,2]
[351910229,1738836632208,-995.0,0.00019609,2]
[351910230,1738836632218,-1102.663,0.00019799,2]
[351910231,1738836632229,-82934.84645435,0.000198,2]
[351910232,1738836632239,-2068.84575,0.000198,2]
[351910233,1738836632248,-995.0,0.00019811,2]
[351910234,1738836632258,-157.43,0.0001984,2]
[351910235,1738836632267,-500.0,0.0001984,2]
[351910236,1738836632277,-850.4870506,0.000199,3]
[351910237,1738836632287,-179.18414599,0.000199,2]
[351910238,1738836632296,-528.45647002,0.000199,2]
[351910239,1738836632305,-528.45647002,0.000199,2]
[351910240,1738836632314,-528.45647002,0.000199,2]
[351910241,1738836632324,-528.45647002,0.000199,2]
[351910242,1738836632333,-528.45647002,0.000199,2]
[351910243,1738836632342,-528.45647002,0.000199,2]
[351910244,1738836632352,-528.45647002,0.000199,2]
[351910245,1738836632361,-528.45647002,0.000199,2]
[351910246,1738836632370,-528.45647002,0.000199,2]
[351910247,1738836632380,-528.45647002,0.000199,2]
[351910248,1738836632390,-528.45647002,0.000199,2]
[351910249,1738836632401,-528.45647002,0.000199,2]
[351910250,1738836632410,-528.45647002,0.000199,2]
[351910251,1738836632420,-528.45647002,0.000199,2]
[351910252,1738836632429,-528.45647002,0.000199,2]
[351910253,1738836632439,-528.45647002,0.000199,2]
[351910254,1738836632448,-528.45647002,0.000199,2]
[351910255,1738836632458,-528.45647002,0.000199,2]
[351910256,1738836632467,-528.45647002,0.000199,2]
[351910257,1738836632477,-528.45,0.000199,2]
[351910258,1738836632486,-7794.94650308,0.000199,2]
[351910259,1738836632495,-530.0648615,0.000199,2]
[351910260,1738836632504,-530.0648615,0.000199,2]
[351910261,1738836632514,-530.0648615,0.000199,2]
[351910262,1738836632523,-530.0648615,0.000199,2]
[351910263,1738836632533,-530.0648615,0.000199,2]
[351910264,1738836632542,-530.0648615,0.000199,2]
[351910265,1738836632552,-530.0648615,0.000199,2]
[351910266,1738836632562,-530.0648615,0.000199,2]
[351910267,1738836632575,-530.0648615,0.000199,2]
[351910268,1738836632584,-530.0648615,0.000199,2]
[351910269,1738836632594,-530.0648615,0.000199,2]
[351910270,1738836632603,-530.0648615,0.000199,2]
[351910271,1738836632612,-530.0648615,0.000199,2]
[351910272,1738836632622,-530.0648615,0.000199,2]
[351910273,1738836632632,-530.0648615,0.000199,2]
[351910274,1738836632641,-530.0648615,0.000199,2]
[351910275,1738836632651,-530.0648615,0.000199,2]
[351910276,1738836632662,-530.0648615,0.000199,2]
[351910277,1738836632672,-530.0648615,0.000199,2]
[351910278,1738836632687,-530.06,0.000199,2]
[351910279,1738836632696,-613.55603911,0.000199,2]
[351910280,1738836632705,-613.55603911,0.000199,2]
[351910281,1738836632715,-613.55603911,0.000199,2]
[351910282,1738836632726,-613.55603911,0.000199,2]
[351910283,1738836632735,-613.55603911,0.000199,2]
[351910284,1738836632745,-613.55603911,0.000199,2]
[351910285,1738836632754,-448.84293933,0.000199,2]
[351910286,1738836632770,-164.71309978,0.000199,2]
[351910287,1738836632780,-613.55603911,0.000199,2]
[351910288,1738836632790,-613.55603911,0.000199,2]
[351910289,1738836632800,-260.07339053,0.000199,2]
[351910290,1738836632816,-353.48264858,0.000199,2]
[351910291,1738836632826,-613.55603911,0.000199,2]
[351910292,1738836632835,-613.55603911,0.000199,2]
[351910293,1738836632845,-613.55603911,0.000199,2]
[351910294,1738836632854,-613.55603911,0.000199,2]
[351910295,1738836632864,-613.55603911,0.000199,2]
[351910296,1738836632874,-613.55603911,0.000199,2]
[351910297,1738836632884,-613.55603911,0.000199,2]
[351910298,1738836632894,-613.55603911,0.000199,2]
[351910299,1738836632903,-613.55603911,0.000199,2]
[351910300,1738836632912,-613.55,0.000199,2]
[351910301,1738836632921,-1441.80037448,0.000199,2]
[351910302,1738836632930,-681.79381616,0.000199,3]
[351910303,1738836632940,-180.62189578,0.000199,2]
[351910304,1738836632950,-155.88,0.00019977,2]
[351910305,1738836632960,-474.86492083,0.00019999,2]
[351910308,1738836637438,-550.63507917,0.00019999,2]
[351910309,1738836637448,-500.0,0.00019999,2]
[351910310,1738836637458,-262.63187481,0.00019999,2]
[351910311,1738836637468,-1310.0,0.0002,2]
[351910312,1738836637480,-155.01568015,0.0002,2]
[351910313,1738836637491,-533.77261774,0.0002,2]
[351910314,1738836637501,-20260.28885074,0.0002,2]
[351910315,1738836637512,-740.34726879,0.0002,2]
[351910316,1738836637523,-8595.71340036,0.0002,2]
[351910317,1738836637534,-2076.34305428,0.0002,2]
[351910318,1738836637659,-1200.87961123,0.0002,2]
[351910319,1738836637770,-1248.82727493,0.0002,2]
[351910471,1738836639452,-7153.73604969,0.0002,2]
[351910473,1738836639463,-1092.27862809,0.0002,2]
[351910481,1738836639536,-161219.76376197,0.0002,2]
[351910483,1738836639548,-127725.20906035,0.0002,2]
[351910485,1738836639559,-29247.60958506,0.0002,2]
[351910496,1738836639680,-576.99,0.0002,2]
[351910501,1738836639884,-677.12645,0.0002,2]
[351910779,1738836642523,-10859.775145,0.0002,2]
[351910839,1738836642966,-560.47152291,0.0002,2]
[351911090,1738836645656,-1075.0,0.0002,2]
[351911092,1738836645666,-368.65788077,0.0002,2]
[351911341,1738837153400,3415.85219178,0.0002,120]
[351911387,1738837832051,-150.714637,9.881e-05,2]
[351911388,1738837832061,-150.873808,9.881e-05,2]
[351911389,1738837832070,-150.74,0.00010137,2]
[351911390,1738837832086,-150.714637,0.00010155,2]
[351911391,1738837832095,-150.873808,0.00010155,2]
[351911392,1738837832105,-150.873808,0.00010292,2]
[351911393,1738837832115,-150.714637,0.00010429,2]
[351911394,1738837832128,-150.714637,0.00010566,2]
[351911395,1738837832137,-150.873808,0.00010566,2]
[351911396,1738837832150,-150.714637,0.0001084,2]
[351911397,1738837832160,-150.873808,0.0001084,2]
[351911398,1738837832169,-150.714637,0.00011114,2]
[351911399,1738837832179,-150.873808,0.00011114,2]
[351911400,1738837832188,-150.873808,0.00011251,2]
[351911401,1738837832198,-150.714637,0.00011388,2]
[351911402,1738837832207,-596.09299128,0.00012,2]
[351911403,1738837832217,-550.0,0.00013,2]
[351911404,1738837832226,-600.0,0.00015,2]
[351911405,1738837832236,-237.53,0.00015374,2]
[351911406,1738837832246,-289.3518,0.00015844,7]
[351911407,1738837832255,-289.3518,0.00016044,7]
[351911408,1738837832265,-150.0,0.00016199,2]
[351911409,1738837832274,-14597.73029373,0.000162,2]
[351911410,1738837832298,-28462.89369,0.000162,2]
[351911411,1738837832313,-307.31279,0.000162,2]
[351911416,1738837837690,-20905.97068791,0.000162,2]
[351911417,1738837837767,-70343.51657981,0.000162,2]
[351911601,1738837839706,-10814.16239999,0.000162,2]
[351911603,1738837839718,-11675.73236602,0.000162,2]
[351911605,1738837839729,-4103.22740319,0.000162,2]
[351911610,1738837839767,-19886.67596401,0.000162,2]
[351911623,1738837839884,-1753.1766598,0.000162,2]
[351911625,1738837839895,-531.14373285,0.000162,2]
[351911628,1738837839911,-1484.6954605,0.000162,2]
[351911630,1738837839923,-325.81121121,0.000162,2]
[351912212,1738837845664,-297.765342,0.00016199,5]
[351912225,1738837845778,-1152.10586708,0.00016199,5]
[351912227,1738837845787,-832.88957764,0.000162,2]
[351912239,1738837845894,-220767.85519194,0.000162,2]
[351912242,1738837845905,-1399.68155421,0.000162,2]
[351912654,1738838065681,-6853.9445,8.836e-05,2]
[351912655,1738838065708,-175.041623,9.881e-05,2]
[351912656,1738838065734,-170.38608,9.881e-05,2]
[351912679,1738839037851,-154.87,0.00010137,2]
[351912680,1738839037860,-175.041623,0.00011114,2]
[351912681,1738839037869,-170.38608,0.00011114,2]
[351912682,1738839037878,-150.0,0.00013718,2]
[351912683,1738839037887,-150.0,0.00013996,2]
[351912684,1738839037896,-396.43881574,0.00014643,2]
[351912685,1738839038046,-603.56118426,0.00014643,2]
[351912686,1738839038055,-530.19,0.00015241,2]
[351912687,1738839038064,-430.40455503,0.00015897,2]
[351912688,1738839038074,-150.0,0.00016137,2]
[351912689,1738839038083,-1003.68142454,0.00016199,2]
[351912690,1738839038092,-1009.95323441,0.00016199,2]
[351912691,1738839038101,-450.0,0.00016199,2]
[351912692,1738839038110,-300.0,0.00016199,2]
[351912693,1738839038120,-1976.00041888,0.000162,2]
[351912694,1738839038193,-58846.56118282,0.000162,2]
[351912696,1738839038203,-1976.38759,0.000162,2]
[351912698,1738839038212,-200.0,0.00016686,2]
[351912700,1738839038222,-298.84457,0.00016688,7]
[351912701,1738839038232,-5187.0,0.000167,2]
[351912703,1738839038241,-1256.645,0.0001672,2]
[351912706,1738839038251,-168.806,0.0001672,2]
[351912708,1738839038260,-316.3,0.00016791,2]
[351912710,1738839038270,-150.74,0.00016813,2]
[351912712,1738839038280,-500.0,0.00016839,2]
[351912714,1738839038289,-298.84457,0.00016888,7]
[351912716,1738839038298,-150.99,0.00016922,2]
[351912718,1738839038308,-150.99,0.00016922,2]
[351912720,1738839038318,-298.84457,0.00017088,7]
[351912722,1738839038327,-500.0,0.00017094,2]
[351912723,1738839038337,-186.67,0.00017188,2]
[351912726,1738839038346,-528.16,0.0001728,30]
[351912728,1738839038356,-298.84457,0.00017288,7]
[351912730,1738839038366,-150.0,0.00017359,2]
[351912732,1738839038375,-298.84457,0.00017488,7]
[351912734,1738839038384,-167.19,0.00017502,2]
[351912736,1738839038394,-530.19,0.00017505,2]
[351912738,1738839038404,-150.0,0.00017616,2]
[351912740,1738839038414,-438.62,0.00017616,2]
[351912742,1738839038425,-150.0,0.00017616,2]
[351912744,1738839038438,-438.62,0.00017616,2]
[351912746,1738839038448,-438.62,0.00017616,2]
[351912748,1738839038457,-150.0,0.00017616,2]
[351912750,1738839038466,-150.0,0.00017616,2]
[351912752,1738839038476,-438.62,0.00017616,2]
[351912754,1738839038486,-298.84457,0.00017688,7]
[351912756,1738839038496,-301.0,0.00017707,2]
[351912758,1738839038506,-176.51,0.00017772,2]
[351912760,1738839038515,-298.84457,0.00017888,7]
[351912762,1738839038525,-1768.01,0.00018082,2]
[351912764,1738839038534,-298.84457,0.00018088,7]
[351912766,1738839038544,-171.09,0.00018154,2]
[351912768,1738839038553,-187.82,0.00018205,2]
[351912770,1738839038562,-1000.0,0.00018229,2]
[351912772,1738839038572,-150.0,0.00018256,2]
[351912774,1738839038581,-298.84457,0.00018288,7]
[351912776,1738839038591,-150.0,0.00018356,2]
[351912778,1738839038600,-5900.0,0.000184,6]
[351912780,1738839038609,-298.84457,0.00018488,7]
[351912782,1738839038619,-11800.0,0.000185,6]
[351912784,1738839038628,-157.43,0.000186,2]
[351912786,1738839038637,-17700.0,0.000186,6]
[351912788,1738839038647,-298.84457,0.00018688,7]
[351912790,1738839038656,-23700.0,0.000187,6]
[351912792,1738839038666,-1768.01,0.00018751,2]
[351912794,1738839038676,-29600.0,0.000188,6]
[351912796,1738839038688,-298.84457,0.00018888,7]
[351912798,1738839038697,-5900.0,0.000189,6]
[351912800,1738839038706,-150.0,0.00019,2]
[351912802,1738839038715,-1089.0,0.00019,2]
[351912804,1738839038725,-899.99999909,0.00019,20]
[351912806,1738839038734,-500.0,0.00019021,2]
[351912808,1738839038744,-298.84457,0.00019088,7]
[351912810,1738839038754,-500.0,0.00019121,2]
[351912812,1738839038763,-793.14215871,0.00019128,2]
[351912814,1738839038775,-155.94,0.00019178,2]
[351912816,1738839038784,-3231.09,0.00019178,2]
[351912818,1738839038793,-257.06169506,0.000192,2]
[351912820,1738839038804,-961.20024966,0.000192,2]
[351912822,1738839038813,-500.0,0.00019221,2]
[351912824,1738839038822,-176.51,0.00019238,2]
[351912826,1738839038831,-300.0,0.0001926,2]
[351912828,1738839038840,-500.0,0.00019273,2]
[351912830,1738839038849,-277.25493448,0.00019273,2]
[351912832,1738839038859,-298.84457,0.00019288,7]
[351912834,1738839038868,-570.78846355,0.00019299,2]
[351912837,1738839038878,-155.01568015,0.000193,2]
[351912839,1738839038887,-126904.55484861,0.000193,2]
[351912840,1738839038896,-7175354.39,0.000193,30]
[351912842,1738839038905,-1264.51,0.000193,2]
[351912844,1738839038914,-500.0,0.00019321,2]
[351912846,1738839038923,-2774.07550207,0.00019391,2]
[351912849,1738839038933,-1768.01,0.0001942,2]
[351912851,1738839038943,-500.0,0.00019421,2]
[351912853,1738839038952,-298.84457,0.00019488,7]
[351912855,1738839038962,-43201.37795657,0.000195,7]
[351912857,1738839038972,-500.0,0.00019521,2]
[351912873,1738839039114,-257.06169505,0.0001955,2]
[351912875,1738839039124,-961.20024965,0.0001955,2]
[351912877,1738839039134,-6297.5660236,0.00019599,2]
[351912879,1738839039143,-1271.0,0.00019609,2]
[351912881,1738839039153,-500.0,0.00019621,2]
[351912883,1738839039162,-26511.86747122,0.0001968,2]
[351912885,1738839039171,-5900.0,0.000197,7]
[351912887,1738839039181,-500.0,0.00019721,2]
[351912889,1738839039191,-150.0,0.00019726,2]
[351912891,1738839039200,-2023.0,0.00019735,2]
[351912893,1738839039209,-1272.0,0.00019735,2]
[351912895,1738839039218,-638.0,0.00019735,2]
[351912897,1738839039228,-150.0,0.00019735,2]
[351912899,1738839039237,-568.0,0.00019735,2]
[351912901,1738839039246,-1826.0,0.00019735,2]
[351912903,1738839039255,-907.0,0.00019735,2]
[351912905,1738839039265,-1264.0,0.00019735,2]
[351912907,1738839039274,-2953.0,0.00019735,2]
[351912909,1738839039283,-783.0,0.00019735,2]
[351912911,1738839039292,-4023.0,0.00019735,2]
[351912913,1738839039301,-539.0,0.00019735,2]
[351912915,1738839039311,-3911.0,0.00019735,2]
[351912917,1738839039320,-150.0,0.00019735,2]
[351912919,1738839039329,-1007.0,0.00019735,2]
[351912921,1738839039338,-150.0,0.00019735,2]
[351912923,1738839039347,-1000.0,0.00019745,2]
[351912925,1738839039356,-530.19,0.00019769,2]
[351912927,1738839039365,-1300.0,0.0001978,2]
[351912929,1738839039374,-3300.0,0.0001978,2]
[351912931,1738839039384,-6853.27601025,0.00019781,7]
[351912933,1738839039393,-12235.3856776,0.00019781,7]
[351912935,1738839039403,-151.0,0.00019781,7]
[351912937,1738839039417,-151.0,0.00019781,7]
[351912939,1738839039427,-151.0,0.00019781,7]
[351912941,1738839039437,-151.0,0.00019781,7]
[351912943,1738839039447,-151.0,0.00019781,7]
[351912945,1738839039457,-151.0,0.00019781,7]
[351912947,1738839039466,-161.18732624,0.00019781,7]
[351912949,1738839039476,-223.022493,0.00019781,2]
[351912951,1738839039485,-223.022493,0.00019781,2]
[351912953,1738839039496,-151.0,0.000198,2]
[351912955,1738839039505,-5900.0,0.000198,7]
[351912957,1738839039514,-151.0,0.000198,2]
[351912959,1738839039523,-150.0,0.000198,2]
[351912961,1738839039532,-1271.0,0.00019811,2]
[351912963,1738839039541,-500.0,0.00019839,2]
[351912965,1738839039550,-500.0,0.00019839,2]
[351912967,1738839039559,-500.0,0.0001984,2]
[351912969,1738839039570,-500.0,0.0001984,2]